Cogmind - Beta 15 @@@ ROGUE MODE // 2025.06.21 @ 19:22:09 Player: Storm Mk9 Result: Self-destructed Performance ------------- Evolutions (2) 1000 Regions Visited (3) 600 Robots Destroyed (35) 175 Value Destroyed (1104) 1104 Prototype IDs (7) 140 Alien Tech Used (0) 0 Bonus (0) 0 TOTAL SCORE: 3019 Bonus ------- None Cogmind --------- Core Integrity 473/550 Matter 291/300 Energy 125/125 System Corruption 0% Temperature Cool (-100) Movement Treading (160) Location -8/Materials Parts ------- > --- POWER (1) -------- Light Ion Engine > --- PROPULSION (2) --- Light Treads Light Treads > --- UTILITY (5) ------ Cryofiber Web Small Storage Unit Improved Light Armor Plating Reflective Plating Hacking Suite > --- WEAPON (3) ------- Improved Medium Laser Improved Assault Rifle Improved Assault Rifle > --- INVENTORY (8) ---- Light Treads High-capacity Storage Unit Heavy EM Pulse Gun Heavy EM Pulse Gun Improved Assault Rifle Battle Cannon Plasma Cutter Ripper Peak State ------------ > --- POWER ------------ Improved Ion Engine > --- PROPULSION ------- Light Treads Myomer Leg > --- UTILITY ---------- Cryofiber Web Small Storage Unit Improved Light Armor Plating Reflective Plating Hacking Suite > --- WEAPON ----------- Improved Assault Rifle Improved Assault Rifle Advanced EMP Blaster > --- INVENTORY -------- Light Ion Engine Heavy EM Pulse Gun Heavy EM Pulse Gun Improved Assault Rifle Battle Cannon Ripper [Rating: 34] Favorites ----------- Power Light Ion Engine Engine Light Ion Engine Propulsion Light Treads Treads Light Treads Leg Myomer Leg Utility Small Storage Unit Device Cryofiber Web Storage Small Storage Unit Hackware Hacking Suite Protection Improved Light Armor Plating Weapon Improved Assault Rifle Energy Gun Improved Medium Laser Ballistic Gun Improved Assault Rifle Ballistic Cannon Battle Cannon Launcher Advanced EMP Blaster Build | -11 -10 -10 -8 ------- Run | Yrd Mat Sub Mat Slots Evolved 4 | . . . 4 Power . | . . . . Propulsion . | . . . . Utility 3 | . . . 3 Weapon 1 | . . . 1 Parts Attached 25 | 7 . 5 13 Power 3 | 1 . . 2 Engine 3 | 1 . . 2 Core . | . . . . Reactor . | . . . . Propulsion 6 | 2 . 1 3 Treads 5 | 2 . . 3 Leg 1 | . . 1 . Wheel . | . . . . Hover . | . . . . Flight . | . . . . Utility 6 | 2 . . 4 Device 2 | 1 . . 1 Storage 1 | 1 . . . Processor . | . . . . Hackware 1 | . . . 1 Protection 2 | . . . 2 Artifact . | . . . . Weapon 10 | 2 . 4 4 Energy Gun 1 | . . . 1 Energy Cannon . | . . . . Ballistic Gun 6 | 2 . 2 2 Ballistic Cannon 2 | . . 2 . Launcher 1 | . . . 1 Special Weapon . | . . . . Impact Weapon . | . . . . Slashing Weapon . | . . . . Piercing Weapon . | . . . . Special Melee Weapon . | . . . . Unidentified Prototypes 3 | . . . 3 Parts Lost 10 | . . 7 3 Power 1 | . . . 1 Propulsion 3 | . . 2 1 Utility 1 | . . 1 . Weapon 5 | . . 4 1 Highest Loss Streak 4 | . . 4 2 To Critical Strikes 1 | . . 1 . Average Backups 4 | 2 3 3 6 Power . | . 1 1 . Propulsion . | . . . . Utility . | . . . . Weapon 2 | 1 2 1 4 Tool/Special . | . . . . Unused Backups 9 | . . 1 8 Power . | . . . . Propulsion 1 | . . . 1 Utility 1 | . . . 1 Weapon 6 | . . 1 5 Tool/Special 1 | . . . 1 Average Slot Usage (%) 88 | . 100 77 93 Engine 11 | . 14 14 9 Treads 12 | . 28 13 6 Leg 6 | . . 7 8 Device 6 | . 14 2 7 Storage 11 | . 14 14 9 Hackware 4 | . . . 8 Protection 7 | . . . 16 Energy Gun 1 | . . . 2 Ballistic Gun 20 | . 28 22 17 Ballistic Cannon 4 | . . 3 6 Peak Build Rating 34 | 7 7 18 34 Average Rating 18 | 5 7 11 30 On Entrance 8 | . 7 7 18 Naked Turns . | . . . . Heaviest Build 29 | 13 13 18 29 Greatest Support 40 | 40 40 40 40 Greatest Overweight (x) 1 | . . . 1 Average Overweight (x) . | . . . . Largest Inventory Capacity 8 | 8 8 8 8 Average Capacity 7 | 7 8 8 8 Most Carried 8 | 4 3 8 8 Average Carried 5 | 2 3 5 7 Final Capacity 8 | 8 8 8 8 Final Carried 8 | 3 3 6 8 Class Distribution -------------------- 58% | Mutant 41% | Tank Dominant Class ---------------- Mutant | -10/Materials Mutant | -10/Subcaves Tank | -8/Materials Resources | -11 -10 -10 -8 ----------- Run | Yrd Mat Sub Mat Matter Collected 1165 | 300 . 296 569 Remotely . | . . . . Salvage Created 1204 | 83 . 360 761 Parts 72 | 9 . 20 43 Haulers Intercepted 3 | . . . 3 Recyclers Shooed . | . . . . Parts Field Recycled . | . . . . Retrieved Matter . | . . . . Parts Self-Destructed 5 | . . 5 . Prevented . | . . . . Kills | -11 -10 -10 -8 ------- Run | Yrd Mat Sub Mat Combat Hostiles Destroyed 26 | . . 11 15 Guns 15 | . . 4 11 Cannons 10 | . . 6 4 AOE 1 | . . 1 . Classes Destroyed 8 | 1 . 1 6 Tunneler 4 | 4 . . . Hauler 3 | . . . 3 Operator 1 | . . . 1 Watcher 1 | . . . 1 Swarmer 3 | . . . 3 Grunt 8 | . . . 8 Sentry 4 | . . . 4 Subdweller 11 | . . 11 . Best Kill Streak 5 | 2 . 3 5 Combat Bots Only 4 | . . 3 4 Max Kills in Single Turn 1 | 1 . 1 1 Gunslinging . | . . . . Exploded 1 | . . 1 . Melee . | . . . . Uniques/NPCs Destroyed . | . . . . Combat | -11 -10 -10 -8 -------- Run | Yrd Mat Sub Mat Hostile Shots Fired 143 | . . 73 70 Missed 47 | . . 26 21 Hits 96 | . . 47 49 Projectile 96 | . . 47 49 AOE 2 | . . 2 . Critical Strikes 3 | . . 2 1 Damage Taken 1735 | . . 1097 638 Core 221 | . . 144 77 Absorbed by Shields . | . . . . Ignored by Resistances 68 | . . . 68 Core Remaining (%) 71 | 100 . 42 . Volleys Fired 100 | 5 . 49 46 Largest 3 | 2 . 2 3 Hottest 102 | 40 . 68 102 Shots Fired 236 | 10 . 89 137 Gun 183 | 10 . 67 106 Cannon 53 | . . 22 31 Launcher . | . . . . Special . | . . . . Kinetic 221 | 10 . 89 122 Thermal 15 | . . . 15 Explosive . | . . . . Electromagnetic . | . . . . Robot Hit Streak 18 | 2 . 10 18 Robot Miss Streak 3 | 2 . 3 3 Penetration Max . | . . . . Secondary Targets 3 | . . 1 2 Max Gunslinging Chain 1 | . . 1 1 Shots Hit Robots 159 | 5 . 65 89 Core Hits 58 | 4 . 21 33 Critical Kills 2 | . . 2 . Critical Parts Destroyed . | . . . . Critical Strikes 8 | . . 6 2 Burn 1 | . . . 1 Destroy 6 | . . 6 . Blast 1 | . . . 1 Melee Attacks . | . . . . Impact . | . . . . Slashing . | . . . . Piercing . | . . . . Sneak Attacks . | . . . . Combat Hostiles . | . . . . Follow-up Attacks . | . . . . Damage Inflicted 2370 | 63 . 815 1492 Guns 1753 | 63 . 499 1191 Cannons 617 | . . 316 301 Explosions . | . . . . Melee . | . . . . Ramming . | . . . . Kinetic 2249 | 63 . 815 1371 Thermal 121 | . . . 121 Explosive . | . . . . Electromagnetic . | . . . . Impact . | . . . . Slashing . | . . . . Piercing . | . . . . Highest Corruption . | . . . . Average Corruption . | . . . . Corruption Purged . | . . . . Corruption Blocked . | . . . . Overload Shots . | . . . . Overflow Damage . | . . . . Projectiles . | . . . . Explosions . | . . . . Melee . | . . . . Knockbacks 5 | . . 3 2 Impact . | . . . . Kinetic 5 | . . 3 2 Secondary . | . . . . Self-Inflicted Damage . | . . . . Shots . | . . . . Rammed . | . . . . Targets Rammed . | . . . . Kicked . | . . . . Crushed . | . . . . Highest Temperature 132 | . . 6 132 Average Temperature 51 | . . 6 55 Received Heat Transfer 483 | . . 159 324 Siege Activations . | . . . . Martial Activations . | . . . . Shielding Activations . | . . . . Robots Disrupted . | . . . . Combat Hostiles . | . . . . Robots Corrupted . | . . . . Combat Hostiles . | . . . . Parts Fried . | . . . . Impact Corruptions . | . . . . Robots Melted . | . . . . Combat Hostiles . | . . . . Parts Melted 1 | . . 1 . Heat Transferred 333 | . . . 333 Parts Sabotaged . | . . . . Parts Stolen . | . . . . Parts Stripped . | . . . . Power Chain Reactions . | . . . . Alert | -11 -10 -10 -8 ------- Run | Yrd Mat Sub Mat Maximum Alert Level . | . . . . Low Security (%) 100 | 100 100 . 100 Level 1 . | . . . . Level 2 . | . . . . Level 3 . | . . . . Level 4 . | . . . . Level 5 . | . . . . High Security . | . . . . Max Security . | . . . . Peak Influence 129 | 5 . . 129 Initial . | . . . . Average 32 | . . . 48 Influence Increases 466 | 20 . . 446 Destroy 0b10 Robot/C 300 | . . . 300 Destroy 0b10 Robot/NC 45 | 20 . . 25 Destroy Leader 68 | . . . 68 Successful Hack 12 | . . . 12 Destroy Structure 11 | . . . 11 Partial Spotted 15 | . . . 15 Lose Combat Pursuer 15 | . . . 15 Influence Decreases 338 | 20 . . 318 Time Decay 308 | 20 . . 288 Lost Part 30 | . . . 30 Squads Dispatched . | . . . . Investigation . | . . . . Extermination . | . . . . Reinforcement . | . . . . Assault . | . . . . Garrison . | . . . . Intercept . | . . . . Searches Triggered . | . . . . Construction Impeded . | . . . . Haulers Reinforced . | . . . . Active Scanning Responses . | . . . . Cargo Convoy Interrupts . | . . . . Stealth | -11 -10 -10 -8 --------- Run | Yrd Mat Sub Mat Distress Signals 5 | . . . 5 Communications Jammed . | . . . . Distress Signals . | . . . . Times Spotted 37 | . . 12 25 Peak Tracking Total 5 | . . 3 5 Tactical Retreats 1 | . . . 1 Traps | -11 -10 -10 -8 ------- Run | Yrd Mat Sub Mat Traps Triggered . | . . . . Indirectly . | . . . . Trap Hack Attempts . | . . . . Triggered . | . . . . Disarmed . | . . . . Reprogrammed . | . . . . Reused . | . . . . Traps Extracted . | . . . . Installed . | . . . . Triggered . | . . . . Machines | -11 -10 -10 -8 ---------- Run | Yrd Mat Sub Mat Machines Disabled . | . . . . Max in Single Turn . | . . . . Machines Repaired . | . . . . Machines Dismantled . | . . . . Machines Sabotaged . | . . . . Overloaded Fab Kills . | . . . . Hacking | -11 -10 -10 -8 --------- Run | Yrd Mat Sub Mat Machines Accessed 5 | . . . 5 Terminals 5 | . . . 5 Fabricators . | . . . . Repair Stations . | . . . . Recycling Units . | . . . . Scanalyzers . | . . . . Garrison Access . | . . . . Total Hacks 11 | . . . 11 Successful 7 | . . . 7 Failed 3 | . . . 3 Catastrophic . | . . . . Database Lockouts 1 | . . . 1 Manual 8 | . . . 8 Terminals 11 | . . . 11 Fabricators . | . . . . Repair Stations . | . . . . Recycling Units . | . . . . Scanalyzers . | . . . . Garrison Access . | . . . . Terminal Hacks 4 | . . . 4 Robot Analysis 1 | . . . 1 Prototype ID Bank 2 | . . . 2 Branch Access Points 1 | . . . 1 Fabricator Hacks . | . . . . Repair Station Hacks . | . . . . Recycling Unit Hacks . | . . . . Scanalyzer . | . . . . Garrison Access Hacks . | . . . . Unauthorized Hacks 3 | . . . 3 Terminals 3 | . . . 3 Botnet 1 | . . . 1 Skim 2 | . . . 2 Fabricators . | . . . . Repair Stations . | . . . . Recycling Units . | . . . . Scanalyzers . | . . . . Garrison Access . | . . . . Data Cores Recovered 1 | . . . 1 Used . | . . . . Hacking Detections 4 | . . . 4 Full Trace Events . | . . . . Feedback Events . | . . . . Feedback Blocked . | . . . . Robot Schematics Acquired . | . . . . Robots Built . | . . . . Authchips . | . . . . Time . | . . . . Total Robot Build Rating . | . . . . Part Schematics Acquired . | . . . . Parts Built . | . . . . Authchips . | . . . . Time . | . . . . Total Part Build Rating . | . . . . Parts Repaired . | . . . . Time . | . . . . Parts Recycled . | . . . . Recycled Matter . | . . . . Retrieved Matter . | . . . . Retrieved Components . | . . . . Parts Scanalyzed . | . . . . Part Schematics Acquired . | . . . . Parts Damaged . | . . . . Bothacking | -11 -10 -10 -8 ------------ Run | Yrd Mat Sub Mat Used RIF Installer . | . . . . Robots Hacked . | . . . . Non-combat . | . . . . Combat . | . . . . Robot Hacks Applied . | . . . . Relay Couplers Released . | . . . . Fabnet Peak Effective % . | . . . . Robots Rewired . | . . . . Allies Hacked . | . . . . Hacks Repelled . | . . . . Allies | -11 -10 -10 -8 -------- Run | Yrd Mat Sub Mat Total Allies . | . . . . Largest Group . | . . . . Highest-Rated Group . | . . . . Highest-Rated Ally . | . . . . Total Orders . | . . . . Ally Attacks . | . . . . Total Damage . | . . . . Kills . | . . . . Allies Corrupted . | . . . . Allies Melted 1 | . . 1 . Intel | -11 -10 -10 -8 ------- Run | Yrd Mat Sub Mat Active Infowar (turns) 383 | 23 255 105 . Seismic 383 | 23 255 105 . Robot Analysis Total 1 | . . . 1 Derelict Logs Recovered 1 | . . 1 . Drone Launches . | . . . . Drone Recoveries . | . . . . Exploration | -11 -10 -10 -8 ------------- Run | Yrd Mat Sub Mat Turns Passed 1962 | 177 255 675 855 Spaces Moved 845 | 97 28 382 338 Core 8 | 8 . . . Treads 280 | 89 28 150 13 Legs 557 | . . 232 325 Wheels . | . . . . Hover . | . . . . Flight . | . . . . Fastest Speed 50 | 50 160 120 120 Average Speed 147 | 150 160 135 159 Slowest Speed 190 | 160 160 160 190 Overloaded Moves . | . . . . Propulsion Burnouts . | . . . . Robots Hopped . | . . . . Potential Cave-ins . | . . . . Cave-ins Triggered . | . . . . Exploration Rate (%) 19 | 5 12 24 35 Regions Visited 3 Branch Regions 1 Pre-discovered Areas . | . . . . Known Exits Taken . | . . . . Unknown Exits Taken 3 | 1 1 1 . Scrap Searched 3 | . . 3 . Spaces Dug . | . . . . Terrain Destroyed 12 | . . 4 8 Melee . | . . . . Projectile 12 | . . 4 8 AOE . | . . . . Terrain Rammed . | . . . . Walls Destroyed . | . . . . Machines Disabled . | . . . . Actions | -11 -10 -10 -8 --------- Run | Yrd Mat Sub Mat Total 1361 | 118 238 456 549 Wait 354 | . 211 14 129 Move 842 | 96 27 381 338 Hop . | . . . . Pick Up 32 | 10 . 6 16 Fast Attach 4 | . . . 4 Attach 18 | 7 . 5 6 Detach . | . . . . Swap 4 | . . . 4 Drop 7 | . . 1 6 Fire 100 | 5 . 49 46 Melee . | . . . . Ram . | . . . . Kick . | . . . . Crush . | . . . . Escape Stasis . | . . . . Rewire . | . . . . Trap . | . . . . Miscellaneous . | . . . . Route ------- -11/Scrapyard -10/Materials -10/Subcaves -8/Materials History --------- Turn | Location | Event 3 | -11/Scrapyard | Discovered new exit (range 16) 178 | -11/Scrapyard | Entered Materials 312 | -10/Materials | Build established: Mutant 412 | -10/Materials | Discovered new exit (range 7) 433 | -10/Materials | Entered Subcaves 434 | -10/Subcaves | Approached by a straggling Scientist 445 | -10/Subcaves | Ambushed by Subdwellers from Twisted Machinery 528 | -10/Subcaves | Learned Materials stockpile data 530 | -10/Subcaves | Ambushed by angry Subdweller bent on revenge 733 | -10/Subcaves | A Subdweller sparked back to life 733 | -10/Subcaves | A Subdweller sparked back to life 733 | -10/Subcaves | A Subdweller sparked back to life 769 | -10/Subcaves | Core integrity fell below 50% 778 | -10/Subcaves | Found Prototype Flight Unit 797 | -10/Subcaves | Lost 4 parts (2n2w) 1095 | -10/Subcaves | Discovered new exit (range 10) 1108 | -10/Subcaves | Entered Materials 1108 | -8/Materials | Evolved 4 slots: Utility x3, Weapon x1 1427 | -8/Materials | Central database locked down 1457 | -8/Materials | Build established: Tank 1963 | -8/Materials | Self-destructed Last Messages --------------- 01863_ Acquired 15 matter. 01886_ W-25 Informer sends out distress signal. 01896_ S-10 Pest destroyed. 01910_ Imp. Ion Engine destroyed. 01913_ Lgt. Treads destroyed. 01915_ Y-45 Defender destroyed. 01915_ Switching to secondary target: Y-45 Defender. 01916_ R-06 Scavenger collects Lgt. Ion Engine. 01923_ Y-45 Defender suffers critical hit (Burn). 01926_ Destroyed Heat Sink. 01929_ Y-45 Defender destroyed. 01934_ Acquired Lgt. Treads. 01940_ Dropped Myomer Leg. 01942_ Acquired Lgt. Treads. 01945_ Acquired 114 matter. 01963_ Connecting with Terminal... >>Access(Branch) No branch access points found. Map ----- +----------------------------------------------------+ | ??????????????????# ! #???????# # # | | ??????????????????# #???????# # # | | ??????????????????# """"""" #???????# ######## | | ??????????????????# """"""" #???????# #??????? | | ??????????????????# """"""" #???????# #??????? | | ??????????????????#=""""""" #???????# ######## | | ??????????????????#%""""""" #???????# # | | ??????????????????#[= * #???????# + | | ??????????????????#####+#####???????# # """ "" | | ?????????????######### +???????# ### """ "" | | ?????????????# # #???????# #?# """ "" | | ??!??????????# + +???????# #?# | | ?????????????# # ####???????# #?# | | ?????????????######### #??????????# #?# | | ??????????? ### [# #????????### ###+####+# | | ?????????? + # = #????????# #^^^ | | ??????????????# """%+=[ #????????# # | | ??????????????# """ # #????????# T #"" | | ??????????????# """ #! #????????# #"Y | | ?????!????????# ?# #????????# #"" | | ??????????????######?# #????????### ### ^ ^ %/ | | ?????????????????????# #??????????# #?#^^ /! | | ?????????????????????# #??????????# #?#[ /! | | ????????????????????## ##?????????# #?#^[[ | | ??????????# ##### #?????????# #?#[^^ | | ??????????# @ #??????####+###^^ | | ??????????# " T #??????# ##[ | | ??????????# #??????# "# | | ??????????# ##### #??????# ## """ | | ??????????## ?????#######??????#= ## """ | | ???????????# ????????????????????# !! # """ | | ???????????#?????????????????????# + | | ?????????????????????????????????# ! # | | ?????????????????????????????????# # #####+# | | ?????????????????????????????????# # ## | | ?????????????????????????????????# # ## | | ?????????????????????????????????# # ## ! | | ?????????????????????????????????# # ## ! | | ?????????????????????????????????####### + ! | | ???????????????????????????????????????#### | | ??????????????????????????????????????????###### | | ???????????????????????????????????????????????? | | ???????????????????????????????????????????????? | | ???????????????????????????????????????????????? | | ???????????????????????????????????????????????? | | | | | | | | | | | +----------------------------------------------------+ Best States ------------- Heat Dissipation 31 Energy Generation 12 Energy Capacity 265 Matter Stores 300 Matter Capacity 300 Sight Range 16 Terrain Scan Density 10 Base Temperature (-) 100 Armor Coverage 300 Resistance: TH 10 Evasion (%) 55 Recoil Reduction 2 Offensive Hacking 10 Item Schematics ----------------- None Robot Schematics ------------------ None Fabricated ------------ Nothing Repaired ---------- Nothing Alien Tech Used ----------------- None Achievements -------------- None Challenges ------------ None Game ------ Seed RecoilHardenedPlatform Manual? 0 Play Time 00:16:07 Cumulative 81.6 hours Start 2025.06.21 @ 19:05:11 End 2025.06.21 @ 19:22:09 Sessions 1 Manual Loads 0 Difficulty Rogue Special Mode None Game No. 80 Rogue 61 Adventurer 0 Explorer 19 Win Type - Total 0 Types 0/0/0/0/0/0/0/0/0/0 Lore% 54 Gallery% 45 Achievement% 68 Wizard Run 0 Options --------- Layout 1 ASCII 0 Keyboard 0 Movement Mouse Keybinds 0 Fullscreen 2 Font 16/SmallcapsGlow Map View 50x40 Zoom Use 0% Tactical HUD 1 Map Filters NONE Filters NONE Steam SD RUN: 65c6dde8-bf9f-44f5-a135-f5f19bd84190